[Event "FIDE WCCC Open-08 2024"]
[Site "Montesilvano"]
[Date "2024.11.26"]
[Round "11.8"]
[White "Morozov, Arkhip"]
[Black "Demchenko, Timofei"]
[Result "0-1"]
[ECO "A36"]
[WhiteElo "1687"]
[BlackElo "1969"]
[Annotator "NA RC"]
[PlyCount "156"]
[EventDate "2024.11.18"]
[EventType "swiss"]
[EventCountry "ITA"]
[SourceTitle "playchess.com"]
[Source "ChessBase"]
[SourceQuality "1"]
[TimeControl "5400+30"]

1. c4 {[%emt 0:00:06]} g6 {[%emt 0:00:06]} 2. Nc3 {[%emt 0:00:23]} Bg7 {[%emt 0:00:13]} 3. g3 {[%emt 0:00:18]} Nf6 {[%emt 0:00:23]} 4. Bg2 {[%emt 0:00:10]} O-O {[%emt 0:00:38]} 5. d3 {[%emt 0:01:12]} c5 {[%emt 0:00:37]} 6. e4 {[%emt 0:01:26]} Nc6 {[%emt 0:00:20]} 7. Nge2 {[%emt 0:00:18]} a6 {[%emt 0:00:54]} 8. O-O {[%emt 0:00:42]} Rb8 {[%emt 0:00:27]} 9. a4 {[%emt 0:01:29]} d6 {[%emt 0:00:39]} 10. h3 {[%emt 0:00:34]} Ne8 {[%emt 0:01:08]} 11. Bd2 {[%emt 0:03:00]} Nc7 {[%emt 0:00:33]} 12. Rb1 {[%emt 0:15:51]} Ne6 {[%emt 0:02:58]} 13. Kh2 {[%emt 0:00:38]} Bd7 {[%emt 0:01:05]} 14. b3 {[%emt 0:01:59]} Ned4 {[%emt 0:01:14]} 15. Nxd4 {[%emt 0:00:50]} Nxd4 {[%emt 0:00:23]} 16. Ne2 {[%emt 0:05:50]} b5 {[%emt 0:00:35]} 17. Nxd4 {[%emt 0:00:17]} Bxd4 {[%emt 0:00:16]} 18. axb5 {[%emt 0:00:19]} axb5 {[%emt 0:00:08]} 19. Qc2 {[%emt 0:00:35]} b4 {[%emt 0:01:05]} 20. Bc1 {[%emt 0:01:18]} Ra8 {[%emt 0:06:26]} 21. Bh6 {[%emt 0:01:50]} Re8 {[%emt 0:01:22]} 22. Be3 {[%emt 0:00:24]} Bg7 {[%emt 0:01:03]} 23. Bc1 {[%emt 0:08:26]} Qb6 {[%emt 0:01:38]} 24. Bb2 {[%emt 0:01:12]} Bxb2 {[%emt 0:00:16]} 25. Qxb2 {[%emt 0:00:14]} Ra3 {[%emt 0:00:09]} 26. Qc2 {[%emt 0:00:40]} Rea8 {[%emt 0:01:18]} 27. Rb2 {[%emt 0:00:17]} R8a6 {[%emt 0:00:28]} 28. Rfb1 {[%emt 0:04:06]} Qa7 {[%emt 0:01:46]} 29. Bf3 {[%emt 0:01:04]} h5 {[%emt 0:01:51]} 30. h4 {[%emt 0:01:14]} e5 {[%emt 0:01:34]} 31. Be2 {[%emt 0:01:12]} Qc7 {[%emt 0:02:22]} 32. Bd1 {[%emt 0:01:37]} Qd8 {[%emt 0:00:38]} 33. Qd2 {[%emt 0:05:29]} Kg7 {[%emt 0:03:10]} 34. Kg1 {[%emt 0:02:16]} f5 {[%emt 0:00:33]} 35. Bf3 {[%emt 0:02:21]} Qf6 {[%emt 0:02:30]} 36. Bd1 {[%emt 0:08:38]} f4 {[%emt 0:00:37]} 37. Qe2 {[%emt 0:01:44]} Bg4 {[%emt 0:03:11]} 38. Qe1 {[%emt 0:00:19]} g5 {[%emt 0:01:10]} 39. Bxg4 {[%emt 0:01:49]} hxg4 {[%emt 0:00:39]} 40. hxg5 {[%emt 0:00:51]} Qxg5 {[%emt 0:00:17]} 41. gxf4 {[%emt 0:00:42]} Qxf4 {[%emt 0:00:52]} 42. Qe2 {[%emt 0:01:13]} Kg6 {[%emt 0:00:58]} 43. Kg2 {[%emt 0:00:23]} Ra1 {[%emt 0:00:09]} 44. Kg1 {[%emt 0:01:42]} Kg5 {[%emt 0:02:10]} 45. Kg2 {[%emt 0:02:07]} Kh4 {[%emt 0:02:21]} 46. Kg1 {[%emt 0:02:46]} R6a2 {[%emt 0:10:04]} 47. Qf1 {[%emt 0:12:51]} Rxb2 {[%emt 0:00:49]} 48. Rxa1 {[%emt 0:00:11]} g3 {[%emt 0:00:38]} 49. Ra8 {[%emt 0:02:44]} gxf2+ {[%emt 0:01:57]} 50. Kh1 {[%emt 0:00:19]} Qf3+ {[%emt 0:00:10]} 51. Kh2 {[%emt 0:00:12]} Qg3+ {[%emt 0:00:08]} 52. Kh1 {[%emt 0:00:12]} Qh3+ {[%emt 0:00:10]} 53. Qxh3+ {[%emt 0:00:14]} Kxh3 {[%emt 0:00:02]} 54. Rh8+ {[%emt 0:00:26]} Kg3 {[%emt 0:00:06]} 55. Rg8+ {[%emt 0:00:11]} Kf3 {[%emt 0:00:26]} 56. Rf8+ {[%emt 0:00:13]} Ke2 {[%emt 0:00:11]} 57. Kg2 {[%emt 0:00:22]} Kxd3 {[%emt 0:00:06]} 58. Rxf2 {[%emt 0:01:03]} Rxf2+ {[%emt 0:00:09]} 59. Kxf2 {[%emt 0:00:22]} Kxe4 {[%emt 0:00:09]} 60. Ke2 {[%emt 0:00:17]} Kd4 {[%emt 0:00:13]} 61. Kd2 {[%emt 0:00:18]} e4 {[%emt 0:00:42]} 62. Ke2 {[%emt 0:00:24]} Kc3 {[%emt 0:00:07]} 63. Ke3 {[%emt 0:00:08]} Kxb3 {[%emt 0:00:06]} 64. Kxe4 {[%emt 0:00:09]} Kxc4 {[%emt 0:00:02]} 65. Kf5 {[%emt 0:00:28]} b3 {[%emt 0:00:19]} 66. Ke6 {[%emt 0:00:05]} b2 {[%emt 0:00:05]} 67. Kxd6 {[%emt 0:00:14]} b1=Q {[%emt 0:00:05]} 68. Ke5 {[%emt 0:00:15]} Qd3 {[%emt 0:00:12]} 69. Ke6 {[%emt 0:00:20]} Qd5+ {[%emt 0:00:15]} 70. Kf6 {[%emt 0:00:06]} Kd4 {[%emt 0:00:05]} 71. Kg6 {[%emt 0:00:19]} Qe5 {[%emt 0:00:08]} 72. Kf7 {[%emt 0:00:09]} Qd6 {[%emt 0:00:07]} 73. Kg7 {[%emt 0:00:06]} Qe6 {[%emt 0:00:06]} 74. Kf8 {[%emt 0:00:19]} Qd7 {[%emt 0:00:05]} 75. Kg8 {[%emt 0:00:13]} Qe7 {[%emt 0:00:05]} 76. Kh8 {[%emt 0:00:11]} Ke5 {[%emt 0:00:04]} 77. Kg8 {[%emt 0:00:14]} Kf6 {[%emt 0:00:06]} 78. Kh8 {[%emt 0:00:12]} Qg7# {[%emt 0:00:07]} 0-1

[Event "FIDE WCCC Open-08 2024"]
[Site "Montesilvano"]
[Date "2024.11.26"]
[Round "11.9"]
[White "Protopopescu, Luca"]
[Black "Pera, Mikolaj"]
[Result "1-0"]
[ECO "B76"]
[WhiteElo "1818"]
[BlackElo "1446"]
[Annotator "NA RC"]
[PlyCount "65"]
[EventDate "2024.11.18"]
[EventType "swiss"]
[EventCountry "ITA"]
[SourceTitle "playchess.com"]
[Source "ChessBase"]
[SourceQuality "1"]
[TimeControl "5400+30"]

1. e4 {[%emt 0:00:02]} c5 {[%emt 0:00:12]} 2. Nf3 {[%emt 0:00:09]} d6 {[%emt 0:00:07]} 3. d4 {[%emt 0:00:14]} cxd4 {[%emt 0:00:12]} 4. Nxd4 {[%emt 0:00:05]} Nf6 {[%emt 0:00:19]} 5. Nc3 {[%emt 0:00:21]} g6 {[%emt 0:00:08]} 6. Be3 {[%emt 0:00:04]} Bg7 {[%emt 0:00:06]} 7. f3 {[%emt 0:00:06]} O-O {[%emt 0:00:07]} 8. Qd2 {[%emt 0:00:03]} Nc6 {[%emt 0:00:08]} 9. O-O-O {[%emt 0:00:18]} d5 {[%emt 0:00:14]} 10. Kb1 {[%emt 0:00:05]} e6 {[%emt 0:11:07]} 11. h4 {[%emt 0:06:18]} h5 {[%emt 0:01:38]} 12. g4 {[%emt 0:01:38]} hxg4 {[%emt 0:00:49]} 13. Nxc6 {[%emt 0:01:23]} bxc6 {[%emt 0:00:32]} 14. h5 {[%emt 0:00:41]} gxh5 {[%emt 0:11:01]} 15. Bh6 {[%emt 0:00:22]} Ne8 {[%emt 0:05:31]} 16. Rxh5 {[%emt 0:03:53]} Qf6 {[%emt 0:03:41]} 17. Bxg7 {[%emt 0:01:37]} Nxg7 {[%emt 0:00:15]} 18. e5 {[%emt 0:01:33]} Qg6 {[%emt 0:01:59]} 19. Rh6 {[%emt 0:00:40]} Qf5 {[%emt 0:03:51]} 20. Bd3 {[%emt 0:00:40]} Qxe5 {[%emt 0:02:11]} 21. Rdh1 {[%emt 0:00:56]} f5 {[%emt 0:00:30]} 22. Qg5 {[%emt 0:04:19]} Kf7 {[%emt 0:00:46]} 23. f4 {[%emt 0:02:46]} Qd4 {[%emt 0:00:35]} 24. Ne2 {[%emt 0:01:48]} Qb6 {[%emt 0:07:53]} 25. Qf6+ {[%emt 0:00:43]} Ke8 {[%emt 0:00:41]} 26. Qxg7 {[%emt 0:01:49]} Qb7 {[%emt 0:00:52]} 27. Rxe6+ {[%emt 0:02:01]} Kd8 {[%emt 0:05:44]} 28. Qxf8+ {[%emt 0:03:16]} Kc7 {[%emt 0:00:11]} 29. Qd6+ {[%emt 0:00:19]} Kb6 {[%emt 0:00:12]} 30. Qb4+ {[%emt 0:00:12]} Kc7 {[%emt 0:00:14]} 31. Re7+ {[%emt 0:00:05]} Bd7 {[%emt 0:01:15]} 32. Rxd7+ {[%emt 0:00:08]} Kxd7 {[%emt 0:00:09]} 33. Qxb7+ {[%emt 0:00:07]} 1-0

[Event "FIDE WCCC Open-08 2024"]
[Site "Montesilvano"]
[Date "2024.11.26"]
[Round "11.10"]
[White "Stankowski, Wiktor"]
[Black "Ayaan Phutane"]
[Result "0-1"]
[ECO "C07"]
[WhiteElo "1617"]
[BlackElo "1796"]
[Annotator "NA RC"]
[PlyCount "64"]
[EventDate "2024.11.18"]
[EventType "swiss"]
[EventCountry "ITA"]
[SourceTitle "playchess.com"]
[Source "ChessBase"]
[SourceQuality "1"]
[TimeControl "5400+30"]

1. e4 {[%emt 0:00:01]} e6 {[%emt 0:00:08]} 2. d4 {[%emt 0:00:30]} d5 {[%emt 0:00:05]} 3. Nd2 {[%emt 0:00:44]} c5 {[%emt 0:00:09]} 4. exd5 {[%emt 0:00:45]} Qxd5 {[%emt 0:00:09]} 5. Ngf3 {[%emt 0:00:58]} cxd4 {[%emt 0:00:10]} 6. Bc4 {[%emt 0:00:10]} Qd6 {[%emt 0:00:07]} 7. O-O {[%emt 0:02:03]} Nf6 {[%emt 0:00:07]} 8. Nb3 {[%emt 0:05:52]} Nc6 {[%emt 0:00:01]} 9. Re1 {[%emt 0:04:12]} a6 {[%emt 0:00:41]} 10. a4 {[%emt 0:07:37]} Qc7 {[%emt 0:02:23]} 11. Qe2 {[%emt 0:09:51]} Bd6 {[%emt 0:01:31]} 12. h3 {[%emt 0:05:47]} O-O {[%emt 0:03:59]} 13. Bg5 {[%emt 0:12:42]} b6 {[%emt 0:03:31]} 14. Bxf6 {[%emt 0:04:34]} gxf6 {[%emt 0:00:18]} 15. Bd3 {[%emt 0:05:14]} f5 {[%emt 0:11:07]} 16. Nbxd4 {[%emt 0:12:26]} Nxd4 {[%emt 0:01:13]} 17. Nxd4 {[%emt 0:00:06]} Kh8 {[%emt 0:00:33]} 18. Qf3 {[%emt 0:01:05]} Bb7 {[%emt 0:00:31]} 19. Qh5 {[%emt 0:00:19]} Rg8 {[%emt 0:00:42]} 20. g4 {[%emt 0:02:14]} Bc5 {[%emt 0:03:20]} 21. c3 {[%emt 0:04:18]} Bxd4 {[%emt 0:01:20]} 22. cxd4 {[%emt 0:00:06]} Qc6 {[%emt 0:00:24]} 23. Kf1 {[%emt 0:01:55]} Qh1+ {[%emt 0:00:09]} 24. Ke2 {[%emt 0:00:08]} Qf3+ {[%emt 0:00:04]} 25. Kd2 {[%emt 0:00:15]} Qxf2+ {[%emt 0:00:07]} 26. Re2 {[%emt 0:00:30]} Qf4+ {[%emt 0:00:07]} 27. Ke1 {[%emt 0:00:10]} Qxd4 {[%emt 0:02:09]} 28. Rd1 {[%emt 0:02:20]} Qb4+ {[%emt 0:01:13]} 29. Rdd2 {[%emt 0:00:19]} Rac8 {[%emt 0:02:12]} 30. Bc2 {[%emt 0:02:20]} Rxc2 {[%emt 0:00:09]} 31. gxf5 {[%emt 0:00:17]} Rc1+ {[%emt 0:00:05]} 32. Kf2 {[%emt 0:00:37]} Qf4+ {[%emt 0:00:08]} 0-1

[Event "FIDE WCCC Open-08 2024"]
[Site "Montesilvano"]
[Date "2024.11.26"]
[Round "11.11"]
[White "Meiyazhagan, Kaviinayan"]
[Black "Wang, Yihan(Ah)"]
[Result "1/2-1/2"]
[ECO "B21"]
[WhiteElo "1707"]
[BlackElo "1630"]
[Annotator "NA RC"]
[PlyCount "134"]
[EventDate "2024.11.18"]
[EventType "swiss"]
[EventCountry "ITA"]
[SourceTitle "playchess.com"]
[Source "ChessBase"]
[SourceQuality "1"]
[TimeControl "5400+30"]

1. e4 {[%emt 0:00:08]} c5 {[%emt 0:00:47]} 2. d4 {[%emt 0:00:19]} cxd4 {[%emt 0:00:40]} 3. c3 {[%emt 0:00:26]} dxc3 {[%emt 0:03:28]} 4. Nxc3 {[%emt 1:31:37]} Nc6 {[%emt 0:03:24]} 5. Nf3 {[%emt 0:00:00]} d6 {[%emt 0:04:03]} 6. Bc4 {[%emt 0:00:00]} e6 {[%emt 0:01:56]} 7. Bf4 {[%emt 0:00:00]} a6 {[%emt 0:03:59]} 8. a3 {[%emt 0:00:00]} Nf6 {[%emt 0:05:36]} 9. O-O {[%emt 0:00:00]} Be7 {[%emt 0:03:02]} 10. Qe2 {[%emt 0:00:00]} e5 {[%emt 1:08:35]} 11. Be3 {[%emt 0:00:00]} b5 {[%emt 0:00:00]} 12. Ba2 {[%emt 0:00:00]} O-O {[%emt 0:00:00]} 13. Rac1 {[%emt 0:00:00]} Bb7 {[%emt 0:00:00]} 14. Rfd1 {[%emt 0:00:00]} Rc8 {[%emt 0:00:00]} 15. h3 {[%emt 0:00:00]} Qd7 {[%emt 0:00:00]} 16. b4 {[%emt 0:00:00]} Ba8 {[%emt 0:00:00]} 17. Nh4 {[%emt 0:00:00]} g6 {[%emt 0:00:00]} 18. Bh6 {[%emt 0:00:00]} Rfe8 {[%emt 0:00:00]} 19. Nf3 {[%emt 0:00:00]} Bf8 {[%emt 0:00:00]} 20. Bxf8 {[%emt 0:08:00]} Rxf8 {[%emt 0:00:00]} 21. Qd2 {[%emt 0:00:00]} Ne7 {[%emt 0:00:00]} 22. Qh6 {[%emt 0:00:00]} Bxe4 {[%emt 0:00:00]} 23. Nxe5 {[%emt 0:00:00]} Qf5 {[%emt 0:00:00]} 24. Nxe4 {[%emt 0:00:00]} Nxe4 {[%emt 0:01:33]} 25. Ng4 {[%emt 0:00:02]} d5 {[%emt 0:04:01]} 26. Qh4 {[%emt 0:01:28]} Qg5 {[%emt 0:01:15]} 27. Qxg5 {[%emt 0:00:32]} Nxg5 {[%emt 0:00:17]} 28. Nf6+ {[%emt 0:00:28]} Kg7 {[%emt 0:00:26]} 29. Nxd5 {[%emt 0:00:21]} Nxd5 {[%emt 0:00:59]} 30. Bxd5 {[%emt 0:00:28]} Rfd8 {[%emt 0:00:47]} 31. Rxc8 {[%emt 0:00:23]} Rxc8 {[%emt 0:00:13]} 32. f4 {[%emt 0:00:08]} Ne6 {[%emt 0:00:22]} 33. Bxe6 {[%emt 0:00:33]} fxe6 {[%emt 0:00:14]} 34. Rd6 {[%emt 0:00:07]} Kf6 {[%emt 0:00:59]} 35. Rxa6 {[%emt 0:00:12]} Rc3 {[%emt 0:00:35]} 36. Ra5 {[%emt 0:00:32]} Kg7 {[%emt 0:00:35]} 37. Rxb5 {[%emt 0:00:16]} Rxa3 {[%emt 0:00:08]} 38. Rb7+ {[%emt 0:00:04]} Kg8 {[%emt 0:00:34]} 39. Kh2 {[%emt 0:01:38]} Rb3 {[%emt 0:00:28]} 40. b5 {[%emt 0:00:04]} Kh8 {[%emt 0:00:25]} 41. Re7 {[%emt 0:00:56]} Rxb5 {[%emt 0:00:07]} 42. Rxe6 {[%emt 0:00:04]} Kg7 {[%emt 0:00:13]} 43. Kg3 {[%emt 0:00:05]} Rb2 {[%emt 0:00:34]} 44. Re7+ {[%emt 0:00:58]} Kg8 {[%emt 0:00:24]} 45. Kf3 {[%emt 0:00:14]} Rb4 {[%emt 0:01:14]} 46. Kg4 {[%emt 0:00:45]} Rb2 {[%emt 0:00:45]} 47. Kg5 {[%emt 0:02:11]} Rb5+ {[%emt 0:01:22]} 48. Kh4 {[%emt 0:00:36]} Rb2 {[%emt 0:00:00]} 49. g4 {[%emt 0:00:13]} Rb5 {[%emt 0:00:00]} 50. Re5 {[%emt 0:00:40]} Rb3 {[%emt 0:00:42]} 51. f5 {[%emt 0:00:48]} Kf7 {[%emt 0:00:23]} 52. Ra5 {[%emt 0:00:22]} gxf5 {[%emt 0:01:25]} 53. Rxf5+ {[%emt 0:00:30]} Kg7 {[%emt 0:00:00]} 54. Rf1 {[%emt 0:00:19]} Kg6 {[%emt 0:00:01]} 55. Rg1 {[%emt 0:00:40]} Rc3 {[%emt 0:00:37]} 56. Rg3 {[%emt 0:00:37]} Rxg3 {[%emt 0:00:33]} 57. Kxg3 {[%emt 0:00:10]} h5 {[%emt 0:00:13]} 58. Kf4 {[%emt 0:00:40]} hxg4 {[%emt 0:00:07]} 59. hxg4 {[%emt 0:00:22]} Kf6 {[%emt 0:00:14]} 60. g5+ {[%emt 0:00:15]} Kg6 {[%emt 0:00:08]} 61. Kg4 {[%emt 0:00:16]} Kg7 {[%emt 0:00:17]} 62. Kf5 {[%emt 0:00:39]} Kf7 {[%emt 0:00:09]} 63. g6+ {[%emt 0:00:15]} Kg7 {[%emt 0:00:16]} 64. Kg5 {[%emt 0:00:19]} Kg8 {[%emt 0:00:06]} 65. Kf6 {[%emt 0:00:06]} Kf8 {[%emt 0:00:08]} 66. Ke6 {[%emt 0:00:14]} Kg7 {[%emt 0:00:09]} 67. Kd7 {[%emt 0:00:05]} Kxg6 {[%emt 0:00:03]} 1/2-1/2

[Event "FIDE WCCC Open-08 2024"]
[Site "Montesilvano"]
[Date "2024.11.26"]
[Round "11.12"]
[White "Adilbek, Adinur"]
[Black "Zhu, Daniel"]
[Result "0-1"]
[ECO "D11"]
[WhiteElo "1651"]
[BlackElo "2050"]
[Annotator "NA RC"]
[PlyCount "108"]
[EventDate "2024.11.18"]
[EventType "swiss"]
[EventCountry "ITA"]
[SourceTitle "playchess.com"]
[Source "ChessBase"]
[SourceQuality "1"]
[TimeControl "5400+30"]

1. d4 {[%emt 0:00:02]} Nf6 {[%emt 0:00:23]} 2. Nf3 {[%emt 0:00:18]} d5 {[%emt 0:00:39]} 3. g3 {[%emt 0:00:16]} c6 {[%emt 0:01:23]} 4. Bg2 {[%emt 0:00:10]} Bf5 {[%emt 0:00:22]} 5. O-O {[%emt 0:00:23]} e6 {[%emt 0:00:51]} 6. c4 {[%emt 0:01:07]} Nbd7 {[%emt 0:01:38]} 7. cxd5 {[%emt 0:04:47]} cxd5 {[%emt 0:04:53]} 8. Nc3 {[%emt 0:00:39]} h6 {[%emt 0:01:42]} 9. Bf4 {[%emt 0:00:20]} a6 {[%emt 0:02:21]} 10. Rc1 {[%emt 0:01:17]} Rc8 {[%emt 0:00:33]} 11. a3 {[%emt 0:03:03]} Be7 {[%emt 0:00:30]} 12. Qb3 {[%emt 0:01:24]} b5 {[%emt 0:03:11]} 13. Na2 {[%emt 0:02:29]} Rc4 {[%emt 0:01:49]} 14. Nb4 {[%emt 0:06:23]} Qb6 {[%emt 0:02:19]} 15. Nd2 {[%emt 0:02:08]} a5 {[%emt 0:03:05]} 16. Na2 {[%emt 0:04:10]} Rxc1 {[%emt 0:03:59]} 17. Rxc1 {[%emt 0:00:58]} O-O {[%emt 0:00:28]} 18. Nf3 {[%emt 0:07:39]} Qa6 {[%emt 0:03:16]} 19. Ne5 {[%emt 0:05:31]} Nxe5 {[%emt 0:02:12]} 20. Bxe5 {[%emt 0:01:04]} Ne4 {[%emt 0:01:41]} 21. Bxe4 {[%emt 0:01:50]} Bxe4 {[%emt 0:00:51]} 22. f3 {[%emt 0:00:46]} Bh7 {[%emt 0:01:26]} 23. Rc7 {[%emt 0:03:25]} Bg5 {[%emt 0:04:45]} 24. Kg2 {[%emt 0:05:13]} b4 {[%emt 0:00:59]} 25. Qd1 {[%emt 0:01:58]} b3 {[%emt 0:01:34]} 26. Nc3 {[%emt 0:02:36]} Bc2 {[%emt 0:00:39]} 27. Qg1 {[%emt 0:00:47]} f6 {[%emt 0:01:16]} 28. Bf4 {[%emt 0:01:27]} Bxf4 {[%emt 0:00:26]} 29. gxf4 {[%emt 0:00:15]} Qd6 {[%emt 0:01:14]} 30. Ra7 {[%emt 0:00:46]} Qxf4 {[%emt 0:00:39]} 31. Kh1 {[%emt 0:00:40]} Rf7 {[%emt 0:00:42]} 32. Rxa5 {[%emt 0:00:48]} f5 {[%emt 0:01:08]} 33. Qg6 {[%emt 0:01:41]} Qe3 {[%emt 0:05:17]} 34. Ra6 {[%emt 0:03:39]} Rf6 {[%emt 0:05:12]} 35. Qg1 {[%emt 0:07:23]} Qd2 {[%emt 0:01:57]} 36. Ra7 {[%emt 0:10:54]} g6 {[%emt 0:01:50]} 37. Ra8+ {[%emt 0:05:07]} Kg7 {[%emt 0:00:09]} 38. Ra7+ {[%emt 0:00:44]} Rf7 {[%emt 0:00:06]} 39. Ra6 {[%emt 0:00:41]} f4 {[%emt 0:05:20]} 40. Rb6 {[%emt 0:02:41]} Re7 {[%emt 0:01:07]} 41. Rb4 {[%emt 0:06:41]} Rc7 {[%emt 0:01:23]} 42. a4 {[%emt 0:02:40]} Rxc3 {[%emt 0:04:37]} 43. Rb7+ {[%emt 0:00:26]} Kf6 {[%emt 0:00:09]} 44. bxc3 {[%emt 0:04:05]} Qxe2 {[%emt 0:00:19]} 45. h3 {[%emt 0:00:23]} Qxf3+ {[%emt 0:32:40]} 46. Qg2 {[%emt 0:00:25]} Qd1+ {[%emt 0:00:00]} 47. Kh2 {[%emt 0:00:22]} Be4 {[%emt 0:00:00]} 48. Rxb3 {[%emt 0:01:27]} Bxg2 {[%emt 0:00:00]} 49. Kxg2 {[%emt 0:00:29]} Qxb3 {[%emt 0:00:00]} 50. a5 {[%emt 0:00:06]} Qxc3 {[%emt 0:00:00]} 51. a6 {[%emt 0:00:14]} Qg3+ {[%emt 0:00:00]} 52. Kf1 {[%emt 0:00:43]} f3 {[%emt 0:00:00]} 53. a7 {[%emt 0:00:43]} Qg2+ {[%emt 0:00:00]} 54. Ke1 {[%emt 0:00:05]} Qe2# {[%emt 0:04:30]} 0-1

[Event "FIDE WCCC Open-08 2024"]
[Site "Montesilvano"]
[Date "2024.11.26"]
[Round "11.13"]
[White "Le, Khai"]
[Black "Nurshin, Nurali"]
[Result "1/2-1/2"]
[ECO "E05"]
[WhiteElo "1808"]
[BlackElo "1612"]
[Annotator "NA RC"]
[PlyCount "219"]
[EventDate "2024.11.18"]
[EventType "swiss"]
[EventCountry "ITA"]
[SourceTitle "playchess.com"]
[Source "ChessBase"]
[SourceQuality "1"]
[TimeControl "5400+30"]

1. d4 {[%emt 0:00:55]} Nf6 {[%emt 0:00:17]} 2. c4 {[%emt 0:01:04]} e6 {[%emt 0:00:15]} 3. Nf3 {[%emt 0:00:23]} d5 {[%emt 0:00:22]} 4. g3 {[%emt 0:00:34]} Be7 {[%emt 0:01:03]} 5. Bg2 {[%emt 0:00:42]} O-O {[%emt 0:02:09]} 6. O-O {[%emt 0:01:42]} dxc4 {[%emt 0:01:01]} 7. Qc2 {[%emt 0:01:09]} c5 {[%emt 0:01:45]} 8. Rd1 {[%emt 0:02:33]} Qc7 {[%emt 0:01:34]} 9. Bf4 {[%emt 0:01:43]} Qb6 {[%emt 0:00:45]} 10. Na3 {[%emt 0:00:52]} cxd4 {[%emt 0:05:50]} 11. Nxc4 {[%emt 0:01:08]} Qc5 {[%emt 0:00:46]} 12. Nxd4 {[%emt 0:00:37]} Nd5 {[%emt 0:01:24]} 13. Nb3 {[%emt 0:01:11]} Qc6 {[%emt 0:02:29]} 14. Rac1 {[%emt 0:01:30]} Rd8 {[%emt 0:02:32]} 15. Qb1 {[%emt 0:01:03]} Qe8 {[%emt 0:00:27]} 16. Be5 {[%emt 0:01:51]} Nc6 {[%emt 0:00:27]} 17. Bd4 {[%emt 0:01:33]} Nxd4 {[%emt 1:15:54]} 18. Nxd4 {[%emt 0:03:40]} Bg5 {[%emt 0:00:00]} 19. f4 {[%emt 0:00:34]} Bf6 {[%emt 0:00:00]} 20. e4 {[%emt 0:01:43]} Ne3 {[%emt 0:00:00]} 21. Nxe3 {[%emt 0:01:02]} Bxd4 {[%emt 0:00:00]} 22. Rd3 {[%emt 0:00:09]} e5 {[%emt 0:00:00]} 23. fxe5 {[%emt 0:01:18]} Qxe5 {[%emt 0:00:00]} 24. Kh1 {[%emt 0:00:40]} Be6 {[%emt 0:00:00]} 25. Rcd1 {[%emt 0:00:22]} h5 {[%emt 0:00:00]} 26. R1d2 {[%emt 0:00:57]} Qg5 {[%emt 0:00:00]} 27. h4 {[%emt 0:02:10]} Qf6 {[%emt 0:00:00]} 28. Qd1 {[%emt 0:00:51]} Bb6 {[%emt 0:00:00]} 29. Nd5 {[%emt 0:00:10]} Bxd5 {[%emt 0:00:00]} 30. Rxd5 {[%emt 0:00:30]} Rxd5 {[%emt 0:00:00]} 31. exd5 {[%emt 0:00:28]} Qe5 {[%emt 0:00:00]} 32. Kh2 {[%emt 0:00:34]} Rd8 {[%emt 0:00:00]} 33. d6 {[%emt 0:03:24]} Qe3 {[%emt 0:00:00]} 34. Bxb7 {[%emt 0:01:48]} Bc7 {[%emt 0:00:00]} 35. Re2 {[%emt 0:01:57]} Rxd6 {[%emt 0:00:00]} 36. Qc2 {[%emt 0:00:20]} Rc6 {[%emt 0:00:00]} 37. Bxc6 {[%emt 0:00:38]} Qxg3+ {[%emt 0:00:00]} 38. Kh1 {[%emt 0:00:15]} Qh3+ {[%emt 0:00:00]} 39. Kg1 {[%emt 0:00:17]} Bb6+ {[%emt 0:00:00]} 40. Rf2 {[%emt 0:00:08]} Qxh4 {[%emt 0:00:00]} 41. Bd5 {[%emt 0:00:37]} Qg4+ {[%emt 0:00:00]} 42. Bg2 {[%emt 0:00:43]} h4 {[%emt 0:00:00]} 43. Kh1 {[%emt 0:00:45]} Bxf2 {[%emt 0:00:00]} 44. Qxf2 {[%emt 0:00:09]} Qd1+ {[%emt 0:00:00]} 45. Qg1 {[%emt 0:00:33]} Qg4 {[%emt 0:00:00]} 46. Qxa7 {[%emt 0:00:13]} g6 {[%emt 0:01:49]} 47. Qa8+ {[%emt 0:00:24]} Kg7 {[%emt 0:00:41]} 48. Qf3 {[%emt 0:00:12]} Qg5 {[%emt 0:00:42]} 49. Qc3+ {[%emt 0:00:16]} Kh7 {[%emt 0:00:07]} 50. a4 {[%emt 0:00:12]} Qg4 {[%emt 0:01:34]} 51. a5 {[%emt 0:00:26]} Qd1+ {[%emt 0:00:05]} 52. Kh2 {[%emt 0:00:15]} Qd6+ {[%emt 0:00:05]} 53. Kg1 {[%emt 0:00:19]} Qd1+ {[%emt 0:00:05]} 54. Kf2 {[%emt 0:00:11]} Qd6 {[%emt 0:00:34]} 55. b4 {[%emt 0:00:20]} g5 {[%emt 0:00:58]} 56. Be4+ {[%emt 0:00:16]} Kg8 {[%emt 0:00:15]} 57. Qc8+ {[%emt 0:00:07]} Kg7 {[%emt 0:00:07]} 58. Qc3+ {[%emt 0:00:26]} f6 {[%emt 0:01:19]} 59. b5 {[%emt 0:00:19]} Qh2+ {[%emt 0:00:30]} 60. Bg2 {[%emt 0:01:42]} Qf4+ {[%emt 0:01:43]} 61. Qf3 {[%emt 0:00:44]} Qd4+ {[%emt 0:00:18]} 62. Qe3 {[%emt 0:00:13]} Qb2+ {[%emt 0:00:24]} 63. Kg1 {[%emt 0:00:15]} Qxb5 {[%emt 0:01:55]} 64. Qe7+ {[%emt 0:00:07]} Kg6 {[%emt 0:00:14]} 65. Be4+ {[%emt 0:00:06]} f5 {[%emt 0:00:53]} 66. Qe6+ {[%emt 0:00:10]} Kh5 {[%emt 0:00:06]} 67. Qxf5 {[%emt 0:00:35]} Qc4 {[%emt 0:01:18]} 68. Bf3+ {[%emt 0:00:23]} Kh6 {[%emt 0:00:05]} 69. Qf6+ {[%emt 0:00:14]} Kh7 {[%emt 0:00:07]} 70. Qe7+ {[%emt 0:00:13]} Kh6 {[%emt 0:00:12]} 71. Qd6+ {[%emt 0:00:15]} Kg7 {[%emt 0:00:18]} 72. Qe5+ {[%emt 0:00:07]} Kh6 {[%emt 0:00:29]} 73. Qe2 {[%emt 0:00:26]} Qc5+ {[%emt 0:00:39]} 74. Kg2 {[%emt 0:00:04]} Qxa5 {[%emt 0:00:47]} 75. Qe6+ {[%emt 0:00:06]} Kg7 {[%emt 0:00:07]} 76. Qe7+ {[%emt 0:00:05]} Kg8 {[%emt 0:00:11]} 77. Be4 {[%emt 0:00:34]} Qd2+ {[%emt 0:00:31]} 78. Kh3 {[%emt 0:00:08]} Qe3+ {[%emt 0:03:20]} 79. Kh2 {[%emt 0:00:12]} Qf2+ {[%emt 0:00:34]} 80. Bg2 {[%emt 0:00:11]} Qf4+ {[%emt 0:00:06]} 81. Kg1 {[%emt 0:00:13]} Qc1+ {[%emt 0:00:13]} 82. Bf1 {[%emt 0:00:09]} Qf4 {[%emt 0:01:48]} 83. Qe8+ {[%emt 0:00:07]} Kg7 {[%emt 0:00:07]} 84. Qe7+ {[%emt 0:00:10]} Kg8 {[%emt 0:00:40]} 85. Qe6+ {[%emt 0:00:04]} Kg7 {[%emt 0:00:05]} 86. Bc4 {[%emt 0:00:44]} Qg3+ {[%emt 0:00:43]} 87. Kf1 {[%emt 0:00:12]} Qf4+ {[%emt 0:00:47]} 88. Ke2 {[%emt 0:00:05]} Qh2+ {[%emt 0:00:25]} 89. Kd3 {[%emt 0:00:12]} Qg3+ {[%emt 0:00:06]} 90. Kc2 {[%emt 0:00:04]} Qf2+ {[%emt 0:00:10]} 91. Kb3 {[%emt 0:00:05]} Qf3+ {[%emt 0:00:14]} 92. Ka4 {[%emt 0:00:13]} Qa8+ {[%emt 0:00:12]} 93. Kb5 {[%emt 0:00:08]} Qb7+ {[%emt 0:00:12]} 94. Kc5 {[%emt 0:00:09]} Qc7+ {[%emt 0:00:09]} 95. Kd4 {[%emt 0:00:19]} Qf4+ {[%emt 0:00:05]} 96. Kc3 {[%emt 0:00:07]} Qf3+ {[%emt 0:00:32]} 97. Bd3 {[%emt 0:00:10]} Qf6+ {[%emt 0:00:14]} 98. Qxf6+ {[%emt 0:00:05]} Kxf6 {[%emt 0:00:09]} 99. Kd2 {[%emt 0:00:03]} Ke5 {[%emt 0:00:10]} 100. Ke3 {[%emt 0:00:11]} g4 {[%emt 0:00:05]} 101. Be4 {[%emt 0:00:15]} h3 {[%emt 0:00:46]} 102. Ba8 {[%emt 0:00:44]} Kf5 {[%emt 0:00:06]} 103. Kf2 {[%emt 0:00:08]} Kf4 {[%emt 0:00:05]} 104. Kg1 {[%emt 0:00:11]} Ke3 {[%emt 0:00:19]} 105. Bb7 {[%emt 0:00:17]} g3 {[%emt 0:00:06]} 106. Bc8 {[%emt 0:00:48]} h2+ {[%emt 0:00:22]} 107. Kg2 {[%emt 0:00:13]} h1=Q+ {[%emt 0:00:19]} 108. Kxh1 {[%emt 0:00:16]} Kf2 {[%emt 0:00:04]} 109. Bh3 {[%emt 0:00:23]} g2+ {[%emt 0:00:04]} 110. Bxg2 {[%emt 0:00:08]} 1/2-1/2